fUSD/lending_fUSD_20241107
["ID","MTS","AMOUNT","RATE_DAILY","PERIOD"]
[341573867,1731005483977,-500.0,0.00029038,2]
[341573868,1731005483986,-500.0,0.00029038,2]
[341573869,1731005483995,-514.04,0.00029038,2]
[341573870,1731005484005,-1245.93,0.00029038,2]
[341573871,1731005484014,-579.96,0.00029038,2]
[341573872,1731005484023,-3252.41,0.00029038,2]
[341573873,1731005484032,-808.64,0.00029038,2]
[341573874,1731005484042,-1820.75,0.00029038,2]
[341573875,1731005484052,-500.0,0.00029038,2]
[341573876,1731005484065,-500.0,0.00029038,2]
[341573877,1731005484075,-1711.32,0.00029038,2]
[341573878,1731005484084,-1964.97,0.00029038,2]
[341573879,1731005484094,-1005.55,0.00029038,2]
[341573880,1731005484103,-2633.57,0.00029038,2]
[341573881,1731005484113,-500.0,0.00029038,2]
[341573882,1731005484123,-1110.86,0.00029038,2]
[341573883,1731005484134,-545.34670506,0.00029038,2]
[341573884,1731005484145,-6468.1,0.00029038,2]
[341573885,1731005484154,-500.0,0.00029038,2]
[341573886,1731005484163,-500.0,0.00029038,2]
[341573887,1731005484173,-500.0,0.00029038,2]
[341573888,1731005484182,-500.0,0.00029038,2]
[341573889,1731005484191,-526.91,0.00029038,2]
[341573890,1731005484201,-4276.72,0.00029038,2]
[341573891,1731005484210,-677.56,0.00029038,2]
[341573892,1731005484219,-500.0,0.00029038,2]
[341573893,1731005484228,-2154.23,0.00029038,2]
[341573894,1731005484238,-500.0,0.00029038,2]
[341573895,1731005484250,-500.0,0.00029038,2]
[341573896,1731005484260,-1485.0,0.00029038,2]
[341573897,1731005484269,-500.0,0.00029038,2]
[341573898,1731005484279,-562.24,0.00029038,2]
[341573899,1731005484292,-500.0,0.00029038,2]
[341573900,1731005484302,-2009.69,0.00029038,2]
[341573901,1731005484312,-2336.8,0.00029038,2]
[341573902,1731005484321,-1026.08,0.00029038,2]
[341573903,1731005484331,-3595.56,0.00029038,2]
[341573904,1731005484341,-1616.18,0.00029038,2]
[341573905,1731005484351,-887.45,0.00029038,2]
[341573906,1731005484361,-500.0,0.00029038,2]
[341573907,1731005484370,-500.0,0.00029038,2]
[341573908,1731005484380,-575.52,0.00029038,2]
[341573909,1731005484391,-1245.31,0.00029038,2]
[341573910,1731005484400,-3430.71,0.00029038,2]
[341573911,1731005484410,-508.17,0.00029038,2]
[341573912,1731005484419,-500.0,0.00029038,2]
[341573913,1731005484428,-927.65,0.00029038,2]
[341573914,1731005484438,-1257.88,0.00029038,2]
[341573915,1731005484448,-1242.44,0.00029038,2]
[341573916,1731005484458,-200.0,0.00029038,2]
[341573917,1731005484468,-9924.2,0.00029038,2]
[341573918,1731005484478,-514.48,0.00029038,2]
[341573919,1731005484488,-1994.21,0.00029038,2]
[341573920,1731005484498,-500.0,0.00029038,2]
[341573921,1731005484507,-1946.0,0.00029038,2]
[341573922,1731005484516,-1206.57,0.00029038,2]
[341573923,1731005484525,-1641.91,0.00029038,2]
[341573924,1731005484536,-692.5,0.00029038,2]
[341573925,1731005484546,-500.0,0.00029038,2]
[341573926,1731005484555,-500.0,0.00029038,2]
[341573927,1731005484565,-500.0,0.00029038,2]
[341573928,1731005484574,-769.86,0.00029038,2]
[341573929,1731005484583,-500.0,0.00029038,2]
[341573930,1731005484593,-500.0,0.00029039,2]
[341573931,1731005484602,-150.0,0.00029039,30]
[341573932,1731005484611,-500.0,0.00029039,2]
[341573933,1731005484620,-524.04,0.00029039,2]
[341573934,1731005484629,-500.0,0.00029039,2]
[341573935,1731005484639,-500.0,0.00029039,2]
[341573936,1731005484647,-628.2,0.00029039,2]
[341573937,1731005484657,-500.0,0.00029039,2]
[341573938,1731005484666,-500.0,0.00029039,2]
[341573939,1731005484675,-500.0,0.00029039,2]
[341573940,1731005484684,-500.0,0.00029039,2]
[341573941,1731005484694,-682.97,0.00029039,2]
[341573942,1731005484703,-500.0,0.00029039,2]
[341573943,1731005484713,-500.0,0.00029039,2]
[341573944,1731005484722,-500.0,0.00029039,2]
[341573945,1731005484731,-892.16,0.00029039,2]
[341573946,1731005484740,-631.88840087,0.00029039,2]
[341573947,1731005484749,-500.0,0.00029039,2]
[341573948,1731005484758,-500.0,0.00029039,2]
[341573949,1731005484767,-500.0,0.00029039,2]
[341573950,1731005484777,-500.0,0.00029039,2]
[341573951,1731005484786,-525.82554005,0.00029039,2]
[341573952,1731005484796,-601.08,0.00029039,2]
[341573953,1731005484805,-500.0,0.00029039,2]
[341573954,1731005484814,-500.0,0.00029039,2]
[341573955,1731005484823,-500.0,0.00029039,2]
[341573956,1731005484833,-500.0,0.00029039,2]
[341573957,1731005484843,-500.0,0.00029039,2]
[341573958,1731005484852,-500.0,0.00029039,2]
[341573959,1731005484862,-500.0,0.00029039,2]
[341573960,1731005484873,-500.0,0.00029039,2]
[341573961,1731005484883,-500.0,0.00029039,2]
[341573962,1731005484895,-500.0,0.00029039,2]
[341573963,1731005484905,-500.0,0.00029039,2]
[341573964,1731005484915,-520.84683194,0.00029039,2]
[341573965,1731005484925,-500.0,0.00029039,2]
[341573966,1731005484934,-500.0,0.00029039,2]
[341573967,1731005484944,-639.86,0.00029039,2]
[341573968,1731005484953,-500.0,0.00029039,2]
[341573969,1731005484963,-1540.13,0.00029039,2]
[341573970,1731005484973,-500.0,0.00029039,2]
[341573971,1731005484982,-151.0,0.00029039,7]
[341573972,1731005484992,-500.0,0.00029039,2]
[341573973,1731005485002,-582.41,0.00029039,2]
[341573974,1731005485011,-500.0,0.00029039,2]
[341573975,1731005485021,-566.6159874,0.00029039,2]
[341573976,1731005485031,-500.0,0.00029039,2]
[341573977,1731005485040,-150.00463364,0.00029039,2]
[341573978,1731005485050,-500.0,0.00029039,2]
[341573979,1731005485059,-500.0,0.00029039,2]
[341573980,1731005485069,-500.0,0.00029039,2]
[341573981,1731005485078,-500.0,0.00029039,2]
[341573982,1731005485088,-500.0,0.00029039,2]
[341573983,1731005485097,-500.0,0.00029039,2]
[341573984,1731005485107,-500.0,0.00029039,2]
[341573985,1731005485116,-500.0,0.00029039,2]
[341573986,1731005485125,-151.0,0.00029039,7]
[341573987,1731005485135,-500.0,0.00029039,2]
[341573988,1731005485146,-500.0,0.00029039,2]
[341573989,1731005485156,-500.0,0.00029039,2]
[341573990,1731005485166,-500.0,0.00029039,2]
[341573991,1731005485175,-500.0,0.00029039,2]
[341573992,1731005485185,-533.88701095,0.00029039,2]
[341573993,1731005485194,-531.1982993,0.00029039,2]
[341573994,1731005485204,-500.0,0.00029039,2]
[341573995,1731005485213,-500.0,0.00029039,2]
[341573996,1731005485223,-500.0,0.00029039,2]
[341573997,1731005485233,-669.8,0.00029039,2]
[341573998,1731005485245,-500.0,0.00029039,2]
[341573999,1731005485255,-500.0,0.00029039,2]
[341574000,1731005485264,-500.0,0.00029039,2]
[341574001,1731005485274,-500.0,0.00029039,2]
[341574002,1731005485284,-151.0,0.00029039,7]
[341574003,1731005485296,-500.0,0.00029039,2]
[341574004,1731005485305,-768.32,0.00029039,2]
[341574005,1731005485316,-500.0,0.00029039,2]
[341574006,1731005485325,-828.57,0.00029039,2]
[341574007,1731005485335,-570.22,0.00029039,2]
[341574008,1731005485344,-500.0,0.00029039,2]
[341574009,1731005485354,-650.71,0.00029039,2]
[341574010,1731005485363,-543.32328954,0.00029039,2]
[341574011,1731005485372,-562.03272589,0.00029039,2]
[341574012,1731005485381,-208.479839,0.00029039,7]
[341574013,1731005485392,-500.0,0.00029039,2]
[341574014,1731005485401,-208.479839,0.00029039,7]
[341574015,1731005485410,-151.0,0.00029039,7]
[341574016,1731005485419,-500.0,0.00029039,2]
[341574017,1731005485429,-500.0,0.00029039,2]
[341574018,1731005485438,-500.0,0.00029039,2]
[341574019,1731005485448,-500.0,0.00029039,2]
[341574020,1731005485457,-151.0,0.00029039,7]
[341574021,1731005485467,-500.0,0.00029039,2]
[341574022,1731005485476,-500.0,0.00029039,2]
[341574023,1731005485486,-500.0,0.00029039,2]
[341574024,1731005485495,-500.0,0.00029039,2]
[341574025,1731005485505,-1733.9,0.00029039,2]
[341574026,1731005485514,-1638.5,0.00029039,2]
[341574027,1731005485524,-219.24244312,0.00029039,2]
[341574028,1731005485534,-1855.35,0.00029039,2]
[341574029,1731005485543,-509.27,0.00029039,2]
[341574030,1731005485553,-500.0,0.00029039,2]
[341574031,1731005485562,-930.12,0.00029039,2]
[341574032,1731005485571,-500.0,0.00029039,2]
[341574033,1731005485581,-500.0,0.00029039,2]
[341574034,1731005485590,-500.0,0.00029039,2]
[341574035,1731005485600,-534.18726182,0.00029039,2]
[341574036,1731005485610,-911.47,0.00029039,2]
[341574037,1731005485619,-1629.74,0.00029039,2]
[341574038,1731005485628,-283.285487,0.00029039,7]
[341574039,1731005485637,-578.59,0.00029039,2]
[341574040,1731005485647,-500.0,0.00029039,2]
[341574041,1731005485656,-283.285487,0.00029039,7]
[341574042,1731005485665,-1433.46,0.00029039,2]
[341574043,1731005485674,-500.0,0.00029039,2]
[341574044,1731005485683,-500.0,0.00029039,2]
[341574045,1731005485693,-253.751808,0.00029039,7]
[341574046,1731005485702,-2481.61,0.00029039,2]
[341574047,1731005485711,-253.751808,0.00029039,7]
[341574048,1731005485720,-518.14,0.00029039,2]
[341574049,1731005485730,-1002.64,0.00029039,2]
[341574050,1731005485739,-1037.98,0.00029039,2]
[341574051,1731005485748,-500.0,0.00029039,2]
[341574052,1731005485758,-4139.66,0.00029039,2]
[341574053,1731005485767,-892.76,0.00029039,2]
[341574054,1731005485776,-647.31,0.00029039,2]
[341574055,1731005485786,-1348.35,0.00029039,2]
[341574056,1731005485795,-504.67659909,0.00029039,2]
[341574057,1731005485805,-500.0,0.00029039,2]
[341574058,1731005485814,-589.84,0.00029039,2]
[341574059,1731005485823,-1734.61,0.00029039,2]
[341574060,1731005485832,-500.0,0.00029039,2]
[341574061,1731005485842,-530.52210971,0.00029039,2]
[341574062,1731005485851,-500.0,0.00029039,2]
[341574063,1731005485860,-500.0,0.00029039,2]
[341574064,1731005485869,-500.0,0.00029039,2]
[341574065,1731005485878,-521.2,0.00029039,2]
[341574066,1731005485887,-151.0,0.00029039,7]
[341574067,1731005485897,-500.0,0.00029039,2]
[341574068,1731005485907,-500.0,0.00029039,2]
[341574069,1731005485916,-500.0,0.00029039,2]
[341574070,1731005485926,-500.0,0.00029039,2]
[341574071,1731005485935,-1185.81,0.00029039,2]
[341574072,1731005485944,-252.47658547,0.00029039,2]
[341574073,1731005485954,-500.0,0.00029039,2]
[341574074,1731005485963,-500.0,0.00029039,2]
[341574075,1731005485972,-500.0,0.00029039,2]
[341574076,1731005485981,-904.95,0.00029039,2]
[341574077,1731005485990,-500.0,0.00029039,2]
[341574078,1731005485999,-1074.81,0.00029039,2]
[341574079,1731005486008,-309.13988881,0.00029039,2]
[341574080,1731005486017,-427.52024219,0.00029039,2]
[341574081,1731005486026,-500.0,0.00029039,2]
[341574082,1731005486035,-1215.48,0.00029039,2]
[341574083,1731005486044,-643.01623814,0.00029039,2]
[341574084,1731005486054,-837.56,0.00029039,2]
[341574085,1731005486063,-500.0,0.00029039,2]
[341574086,1731005486072,-1493.93,0.00029039,2]
[341574087,1731005486081,-652.59,0.00029039,2]
[341574088,1731005486090,-579.28740645,0.00029039,2]
[341574089,1731005486099,-1134.06,0.00029039,2]
[341574090,1731005486109,-892.46,0.00029039,2]
[341574091,1731005486118,-500.0,0.00029039,2]
[341574092,1731005486129,-500.0,0.00029039,2]
[341574093,1731005486138,-500.0,0.00029039,2]
[341574094,1731005486148,-511.27,0.00029039,2]
[341574095,1731005486157,-739.93,0.00029039,2]
[341574096,1731005486166,-500.0,0.00029039,2]
[341574097,1731005486176,-1581.39,0.00029039,2]
[341574098,1731005486185,-522.56403556,0.00029039,2]
[341574099,1731005486194,-500.0,0.00029039,2]
[341574100,1731005486203,-956.92,0.00029039,2]
[341574101,1731005486212,-500.0,0.00029039,2]
[341574102,1731005486223,-500.0,0.00029039,2]
[341574103,1731005486232,-500.0,0.00029039,2]
[341574104,1731005486242,-647.08479,0.00029039,7]
[341574105,1731005486448,-500.0,0.00029039,2]
[341574106,1731005486474,-605.61,0.00029039,2]
[341574107,1731005486483,-922.75,0.00029039,2]
[341574108,1731005486494,-647.08479,0.00029039,7]
[341574109,1731005486503,-500.0,0.00029039,2]
[341574110,1731005486513,-1430.418167,0.00029039,7]
[341574111,1731005486523,-919.73,0.00029039,2]
[341574112,1731005486533,-500.0,0.00029039,2]
[341574113,1731005486542,-1751.48,0.00029039,2]
[341574114,1731005486552,-1430.418167,0.00029039,7]
[341574115,1731005486562,-151.0,0.00029039,7]
[341574116,1731005486573,-973.17,0.00029039,2]
[341574117,1731005486582,-500.0,0.00029039,2]
[341574118,1731005486592,-510.51,0.00029039,2]
[341574119,1731005486601,-967.16,0.00029039,2]
[341574120,1731005486611,-151.0,0.00029039,7]
[341574121,1731005486620,-500.0,0.00029039,2]
[341574122,1731005486630,-500.0,0.00029039,2]
[341574123,1731005486641,-503.82688017,0.00029039,2]
[341574124,1731005486650,-500.0,0.00029039,2]
[341574125,1731005486660,-151.0,0.00029039,7]
[341574126,1731005486670,-500.0,0.00029039,2]
[341574127,1731005486680,-1802.27,0.00029039,2]
[341574128,1731005486690,-1247.64,0.00029039,2]
[341574129,1731005486699,-500.0,0.00029039,2]
[341574130,1731005486709,-380.75939581,0.00029039,2]
[341574131,1731005486719,-1705.41,0.00029039,2]
[341574132,1731005486728,-500.0,0.00029039,2]
[341574133,1731005486737,-884.38,0.00029039,2]
[341574134,1731005486747,-1976.45,0.00029039,2]
[341574135,1731005486756,-500.0,0.00029039,2]
[341574136,1731005486765,-838.0,0.00029039,2]
[341574137,1731005486775,-500.0,0.00029039,2]
[341574138,1731005486784,-1439.59,0.00029039,2]
[341574139,1731005486793,-919.11,0.00029039,2]
[341574140,1731005486802,-500.0,0.00029039,2]
[341574141,1731005486811,-151.0,0.00029039,7]
[341574142,1731005486823,-7086.954869,0.00029039,7]
[341574143,1731005486832,-563.73642574,0.00029039,2]
[341574144,1731005486841,-826.38,0.00029039,2]
[341574145,1731005486851,-205.08947,0.00029039,7]
[341574146,1731005486860,-7086.954869,0.00029039,7]
[341574147,1731005486869,-500.0,0.00029039,2]
[341574148,1731005486878,-500.0,0.00029039,2]
[341574149,1731005486888,-518.35,0.00029039,2]
[341574150,1731005486899,-151.0,0.00029039,7]
[341574151,1731005486909,-500.0,0.00029039,2]
[341574152,1731005486918,-500.0,0.00029039,2]
[341574153,1731005486927,-500.0,0.00029039,2]
[341574154,1731005486937,-151.0,0.00029039,7]
[341574155,1731005486946,-500.0,0.00029039,2]
[341574156,1731005486956,-1009.6,0.00029039,2]
[341574157,1731005486965,-1002.05,0.00029039,2]
[341574158,1731005486975,-2527.2,0.00029039,2]
[341574159,1731005486984,-1144.57,0.00029039,2]
[341574160,1731005486994,-500.0,0.00029039,2]
[341574161,1731005487003,-1071.74,0.00029039,2]
[341574162,1731005487013,-500.0,0.00029039,2]
[341574163,1731005487023,-1188.09,0.00029039,2]
[341574164,1731005487032,-500.0,0.00029039,2]
[341574165,1731005487041,-500.0,0.00029039,2]
[341574166,1731005487051,-500.0,0.00029039,2]
[341574167,1731005487060,-845.34,0.00029039,2]
[341574168,1731005487069,-578.54,0.00029039,2]
[341574169,1731005487079,-500.0,0.00029039,2]
[341574170,1731005487087,-500.0,0.00029039,2]
[341574171,1731005487096,-500.0,0.00029039,2]
[341574172,1731005487111,-500.0,0.00029039,2]
[341574173,1731005487120,-528.65,0.00029039,2]
[341574174,1731005487130,-1081.76,0.00029039,2]
[341574175,1731005487141,-151.0,0.00029039,7]
[341574176,1731005487151,-1104.64,0.00029039,2]
[341574177,1731005487160,-500.0,0.00029039,2]
[341574178,1731005487169,-500.0,0.00029039,2]
[341574179,1731005487179,-500.0,0.00029039,2]
[341574180,1731005487189,-500.0,0.00029039,2]
[341574181,1731005487198,-1167.6,0.00029039,2]
[341574182,1731005487207,-529.22,0.00029039,2]
[341574183,1731005487217,-500.0,0.00029039,2]
[341574184,1731005487226,-500.0,0.00029039,2]
[341574185,1731005487238,-500.0,0.00029039,2]
[341574186,1731005487248,-1599.73,0.00029039,2]
[341574187,1731005487257,-514.2,0.00029039,2]
[341574188,1731005487266,-500.0,0.00029039,2]
[341574189,1731005487276,-500.0,0.00029039,2]
[341574190,1731005487287,-3373.99,0.00029039,2]
[341574191,1731005487296,-740.85,0.00029039,2]
[341574192,1731005487306,-500.0,0.00029039,2]
[341574193,1731005487315,-1079.81,0.00029039,2]
[341574194,1731005487327,-500.0,0.00029039,2]
[341574195,1731005487336,-1468.77,0.00029039,2]
[341574196,1731005487345,-1540.59,0.00029039,2]
[341574197,1731005487355,-500.0,0.00029039,2]
[341574198,1731005487364,-500.0,0.00029039,2]
[341574199,1731005487375,-500.0,0.00029039,2]
[341574200,1731005487384,-1199.97,0.00029039,2]
[341574201,1731005487394,-580.59,0.00029039,2]
[341574202,1731005487404,-915.86,0.00029039,2]
[341574203,1731005487414,-500.0,0.00029039,2]
[341574204,1731005487423,-706.05,0.00029039,2]
[341574205,1731005487433,-500.0,0.00029039,2]
[341574206,1731005487442,-503.34002586,0.00029039,2]
[341574207,1731005487452,-1307.37,0.00029039,2]
[341574208,1731005487461,-2645.77,0.00029039,2]
[341574209,1731005487470,-500.0,0.00029039,2]
[341574210,1731005487480,-500.0,0.00029039,2]
[341574211,1731005487490,-500.0,0.00029039,2]
[341574212,1731005487499,-209.707123,0.00029039,7]
[341574213,1731005487509,-1298.14,0.00029039,2]
[341574214,1731005487518,-500.0,0.00029039,2]
[341574215,1731005487528,-209.707123,0.00029039,7]
[341574216,1731005487538,-500.0,0.00029039,2]
[341574217,1731005487548,-500.0,0.00029039,2]
[341574218,1731005487557,-513.17776097,0.00029039,2]
[341574219,1731005487566,-570.58,0.00029039,2]
[341574220,1731005487575,-2471.29,0.00029039,2]
[341574221,1731005487585,-1311.87,0.00029039,2]
[341574222,1731005487594,-500.0,0.00029039,2]
[341574223,1731005487603,-820.03,0.00029039,2]
[341574224,1731005487613,-894.89,0.00029039,2]
[341574225,1731005487622,-500.0,0.00029039,2]
[341574226,1731005487632,-500.0,0.00029039,2]
[341574227,1731005487643,-2081.12,0.00029039,2]
[341574228,1731005487653,-920.52,0.00029039,2]
[341574229,1731005487662,-500.0,0.00029039,2]
[341574230,1731005487671,-921.26,0.00029039,2]
[341574231,1731005487681,-903.72,0.00029039,2]
[341574232,1731005487690,-500.0,0.00029039,2]
[341574233,1731005487699,-663.16,0.00029039,2]
[341574234,1731005487709,-1075.23,0.00029039,2]
[341574235,1731005487718,-1082.546191,0.00029039,7]
[341574236,1731005487727,-1606.01,0.00029039,2]
[341574237,1731005487737,-500.0,0.00029039,2]
[341574238,1731005487746,-1082.546191,0.00029039,7]
[341574239,1731005487755,-500.0,0.00029039,2]
[341574240,1731005487764,-500.0,0.00029039,2]
[341574241,1731005487773,-2000.0,0.00029039,2]
[341574242,1731005487783,-500.0,0.00029039,2]
[341574243,1731005487791,-500.0,0.00029039,2]
[341574244,1731005487801,-151.0,0.00029039,7]
[341574245,1731005487812,-500.0,0.00029039,2]
[341574246,1731005487821,-656.31,0.00029039,2]
[341574247,1731005487830,-933.57,0.00029039,2]
[341574248,1731005487839,-1316.03,0.00029039,2]
[341574249,1731005487848,-511.86,0.00029039,2]
[341574250,1731005487857,-2787.88,0.00029039,2]
[341574251,1731005487867,-1233.83,0.00029039,2]
[341574252,1731005487878,-500.0,0.00029039,2]
[341574253,1731005487887,-1649.02,0.00029039,2]
[341574254,1731005487897,-500.0,0.00029039,2]
[341574255,1731005487906,-1277.07,0.00029039,2]
[341574256,1731005487916,-546.15185997,0.00029039,2]
[341574257,1731005487926,-795.32,0.00029039,2]
[341574258,1731005487935,-500.0,0.00029039,2]
[341574259,1731005487944,-1053.58,0.00029039,2]
[341574260,1731005487953,-500.0,0.00029039,2]
[341574261,1731005487963,-151.0,0.00029039,7]
[341574262,1731005487972,-1483.3,0.00029039,2]
[341574263,1731005487981,-1927.923191,0.00029039,7]
[341574264,1731005487991,-500.0,0.00029039,2]
[341574265,1731005488000,-1139.35,0.00029039,2]
[341574266,1731005488009,-1927.923191,0.00029039,7]
[341574267,1731005488019,-1757.95,0.00029039,2]
[341574268,1731005488028,-722.47,0.00029039,2]
[341574269,1731005488037,-569.02,0.00029039,2]
[341574270,1731005488046,-500.0,0.00029039,2]
[341574271,1731005488056,-500.0,0.00029039,2]
[341574272,1731005488065,-151.0,0.00029039,7]
[341574273,1731005488074,-2079.68,0.00029039,2]
[341574274,1731005488084,-500.0,0.00029039,2]
[341574275,1731005488093,-500.0,0.00029039,2]
[341574276,1731005488103,-509.53046024,0.00029039,2]
[341574277,1731005488112,-500.0,0.00029039,2]
[341574278,1731005488122,-173.87438048,0.00029039,2]
[341574279,1731005488132,-621.46,0.00029039,2]
[341574280,1731005488143,-4585.15,0.00029039,2]
[341574281,1731005488153,-514.14189648,0.00029039,2]
[341574282,1731005488162,-500.0,0.00029039,2]
[341574283,1731005488171,-514.27531579,0.00029039,2]
[341574284,1731005488181,-705.61,0.00029039,2]
[341574285,1731005488190,-1632.43,0.00029039,2]
[341574286,1731005488199,-514.2661046,0.00029039,2]
[341574287,1731005488209,-2335.67,0.00029039,2]
[341574288,1731005488219,-500.0,0.00029039,2]
[341574289,1731005488228,-741.19176538,0.00029039,2]
[341574290,1731005488890,-504.11823462,0.00029039,2]
[341574291,1731005488900,-500.0,0.00029039,2]
[341574292,1731005488911,-737.75,0.00029039,2]
[341574293,1731005488921,-500.0,0.00029039,2]
[341574294,1731005488930,-151.0,0.00029039,7]
[341574295,1731005488940,-990.76,0.00029039,2]
[341574296,1731005488950,-1489.7,0.00029039,2]
[341574297,1731005488960,-500.0,0.00029039,2]
[341574298,1731005488969,-746.59,0.00029039,2]
[341574299,1731005488979,-500.0,0.00029039,2]
[341574300,1731005488988,-500.0,0.00029039,2]
[341574301,1731005488998,-2626.87,0.00029039,2]
[341574302,1731005489007,-500.0,0.00029039,2]
[341574303,1731005489016,-748.79,0.00029039,2]
[341574304,1731005489025,-537.90956639,0.00029039,2]
[341574305,1731005489035,-551.81,0.00029039,2]
[341574306,1731005489045,-1029.44,0.00029039,2]
[341574307,1731005489054,-500.0,0.00029039,7]
[341574308,1731005489064,-500.0,0.00029039,2]
[341574309,1731005489076,-1187.0,0.00029039,2]
[341574310,1731005489087,-500.0,0.00029039,2]
[341574311,1731005489096,-500.0,0.00029039,2]
[341574312,1731005489105,-589.86,0.00029039,2]
[341574313,1731005489115,-286.15,0.00029052,120]
[341574314,1731005489125,-2000.0,0.00029053,2]
[341574315,1731005489135,-200.0,0.00029053,2]
[341574316,1731005489147,-171.30208726,0.00029073,5]
[341574317,1731005489163,-500.0,0.00029073,5]
[341574318,1731005489172,-500.0,0.00029073,5]
[341574319,1731005489182,-1000.0,0.00029082,2]
[341574320,1731005489193,-151.0,0.00029091,7]
[341574321,1731005489202,-152.160297,0.00029091,7]
[341574322,1731005489211,-151.0,0.00029091,7]
[341574323,1731005489221,-151.0,0.00029091,7]
[341574324,1731005489230,-708.923183,0.00029091,7]
[341574325,1731005489241,-708.923183,0.00029091,7]
[341574326,1731005489254,-151.0,0.00029091,7]
[341574327,1731005489263,-151.0,0.00029091,7]
[341574328,1731005489273,-225.62945,0.00029091,7]
[341574329,1731005489282,-3921.07,0.00029091,2]
[341574330,1731005489292,-525.08,0.00029091,2]
[341574331,1731005489305,-2537.9,0.00029091,2]
[341574332,1731005489315,-1533.51,0.00029091,2]
[341574333,1731005489327,-500.0,0.00029091,2]
[341574334,1731005489337,-965.15,0.00029091,2]
[341574335,1731005489347,-681.92,0.00029091,2]
[341574336,1731005489356,-2552.45,0.00029091,2]
[341574337,1731005489366,-4225.14,0.00029091,2]
[341574338,1731005489377,-982.85,0.00029091,2]
[341574339,1731005489386,-982.63,0.00029091,2]
[341574340,1731005489398,-849.45,0.00029092,2]
[341574341,1731005489407,-500.0,0.00029092,2]
[341574342,1731005489418,-1288.89,0.00029092,2]
[341574343,1731005489427,-2336.8,0.00029092,2]
[341574344,1731005489437,-500.0,0.00029093,2]
[341574345,1731005489447,-151.0,0.00029093,7]
[341574346,1731005489456,-151.0,0.00029093,7]
[341574347,1731005489466,-211.791899,0.00029093,7]
[341574348,1731005489475,-211.791899,0.00029093,7]
[341574349,1731005489485,-151.0,0.00029093,7]
[341574350,1731005489494,-500.0,0.00029093,2]
[341574351,1731005489503,-500.0,0.00029093,2]
[341574352,1731005489513,-611.37480397,0.00029093,2]
[341574353,1731005489522,-500.0,0.00029093,2]
[341574354,1731005489532,-738.09,0.00029093,2]
[341574355,1731005489541,-500.0,0.00029093,2]
[341574356,1731005489550,-500.0,0.00029093,2]
[341574357,1731005489559,-500.0,0.00029093,2]
[341574358,1731005489569,-500.0,0.00029093,2]
[341574359,1731005489579,-500.0,0.00029093,2]
[341574360,1731005489588,-500.0,0.00029093,2]
[341574361,1731005489598,-500.0,0.00029093,2]
[341574362,1731005489607,-500.0,0.00029093,2]
[341574363,1731005489616,-500.0,0.00029093,2]
[341574364,1731005489626,-500.0,0.00029093,2]
[341574365,1731005489635,-500.0,0.00029093,2]
[341574366,1731005489646,-152.824735,0.00029093,7]